{"text_format":"3","workbook":"xlsx","n_sheets":5,"sheets":["Информационная панель","Расходы и доходы","Отчет о бюджете","Списки данных","Сводная таблица категорий"],"not_rendered":{"charts":3,"defined_names":18,"pivot_tables":2},"read":"whole","date_system":"1900"}

{"sheet":"Информационная панель","index":0,"n_rows":21,"n_cols":16,"rows_kept":21,"merged":[[5,2,5,3],[8,9,8,10],[9,9,9,10],[10,9,10,10]]}
[]
[null,null,"Полумесячный домашний бюджет",{"$nulls":12},"ИНФОРМАЦИОННАЯ ПАНЕЛЬ"]
[]
[]
[]
[null,null,{"$f":"CHOOSE(НомерМесяца,\"Январь\",\"Февраль\",\"Март\",\"Апрель\",\"Май\",\"Июнь\",\"Июль\",\"Август\",\"Сентябрь\",\"Октябрь\",\"Ноябрь\",\"Декабрь\")","v":"Август"},null,8,{"$nulls":5},2012]
[]
[]
[null,null,"ИТОГИ ЗА МЕСЯЦ","Monthly Totals",{"$nulls":5},"ИТОГИ ЗА ГОД",null,"Annual Totals"]
[null,null,"ДОХОДЫ","Расходы",{"$f":"SUMIF(Расходы[ДАТА],\"<=\"&ДатаОкончанияМесяца,Расходы[СУММА])-SUMIF(Расходы[ДАТА],\"<\"&ДатаНачалаМесяца,Расходы[СУММА])","v":{"v":0,"d":"0р."}},{"$nulls":4},"ДОХОДЫ",null,"Расходы",{"$f":"SUM(IF(YEAR(Расходы[ДАТА])=K6,Расходы[СУММА]))","v":{"v":10242,"d":"10,242р."}}]
[null,null,"РАСХОДЫ","ДОХОДЫ",{"$f":"SUMIF(ДОХОДЫ[ДАТА],\"<=\"&ДатаОкончанияМесяца,ДОХОДЫ[СУММА])-SUMIF(ДОХОДЫ[ДАТА],\"<\"&ДатаНачалаМесяца,ДОХОДЫ[СУММА])","v":{"v":0,"d":"0р."}},{"$nulls":4},"РАСХОДЫ",null,"ДОХОДЫ",{"$f":"SUM(IF(YEAR(ДОХОДЫ[ДАТА])=K6,ДОХОДЫ[СУММА]))","v":{"v":12700,"d":"12,700р."}}]
[]
[]
[]
[]
[]
[{"$nulls":3},"ЯНВАРЬ","ФЕВРАЛЬ","МАРТ","АПРЕЛЬ","МАЙ","ИЮНЬ","ИЮЛЬ","АВГУСТ","СЕНТЯБРЬ","ОКТЯБРЬ","НОЯБРЬ","ДЕКАБРЬ"]
[null,null,"Доходы за 1 пол. мес.",{"$f":"SUMIFS(ДОХОДЫ[СУММА],ДОХОДЫ[ОПИСАНИЕ],\"<=\"&ДатаСередины,ДОХОДЫ[ОПИСАНИЕ],\">=\"&ДатаНачала)","v":{"v":0,"d":"0.00р."}},{"$f":"SUMIFS(ДОХОДЫ[СУММА],ДОХОДЫ[ОПИСАНИЕ],\"<=\"&ДатаСередины,ДОХОДЫ[ОПИСАНИЕ],\">=\"&ДатаНачала)","v":{"v":0,"d":"0.00р."}},{"$f":"SUMIFS(ДОХОДЫ[СУММА],ДОХОДЫ[ОПИСАНИЕ],\"<=\"&ДатаСередины,ДОХОДЫ[ОПИСАНИЕ],\">=\"&ДатаНачала)","v":{"v":0,"d":"0.00р."}},{"$f":"SUMIFS(ДОХОДЫ[СУММА],ДОХОДЫ[ОПИСАНИЕ],\"<=\"&ДатаСередины,ДОХОДЫ[ОПИСАНИЕ],\">=\"&ДатаНачала)","v":{"v":0,"d":"0.00р."}},{"$f":"SUMIFS(ДОХОДЫ[СУММА],ДОХОДЫ[ОПИСАНИЕ],\"<=\"&ДатаСередины,ДОХОДЫ[ОПИСАНИЕ],\">=\"&ДатаНачала)","v":{"v":0,"d":"0.00р."}},{"$f":"SUMIFS(ДОХОДЫ[СУММА],ДОХОДЫ[ОПИСАНИЕ],\"<=\"&ДатаСередины,ДОХОДЫ[ОПИСАНИЕ],\">=\"&ДатаНачала)","v":{"v":0,"d":"0.00р."}},{"$f":"SUMIFS(ДОХОДЫ[СУММА],ДОХОДЫ[ОПИСАНИЕ],\"<=\"&ДатаСередины,ДОХОДЫ[ОПИСАНИЕ],\">=\"&ДатаНачала)","v":{"v":0,"d":"0.00р."}},{"$f":"SUMIFS(ДОХОДЫ[СУММА],ДОХОДЫ[ОПИСАНИЕ],\"<=\"&ДатаСередины,ДОХОДЫ[ОПИСАНИЕ],\">=\"&ДатаНачала)","v":{"v":0,"d":"0.00р."}},{"$f":"SUMIFS(ДОХОДЫ[СУММА],ДОХОДЫ[ОПИСАНИЕ],\"<=\"&ДатаСередины,ДОХОДЫ[ОПИСАНИЕ],\">=\"&ДатаНачала)","v":{"v":0,"d":"0.00р."}},{"$f":"SUMIFS(ДОХОДЫ[СУММА],ДОХОДЫ[ОПИСАНИЕ],\"<=\"&ДатаСередины,ДОХОДЫ[ОПИСАНИЕ],\">=\"&ДатаНачала)","v":{"v":0,"d":"0.00р."}},{"$f":"SUMIFS(ДОХОДЫ[СУММА],ДОХОДЫ[ОПИСАНИЕ],\"<=\"&ДатаСередины,ДОХОДЫ[ОПИСАНИЕ],\">=\"&ДатаНачала)","v":{"v":0,"d":"0.00р."}},{"$f":"SUMIFS(ДОХОДЫ[СУММА],ДОХОДЫ[ОПИСАНИЕ],\"<=\"&ДатаСередины,ДОХОДЫ[ОПИСАНИЕ],\">=\"&ДатаНачала)","v":{"v":0,"d":"0.00р."}}]
[null,null,"Доходы за 2 пол. мес.",{"$f":"SUMIFS(ДОХОДЫ[СУММА],ДОХОДЫ[ОПИСАНИЕ],\"<=\"&ДатаОкончания,ДОХОДЫ[ОПИСАНИЕ],\">=\"&ДатаСередины+1)","v":{"v":0,"d":"0.00р."}},{"$f":"SUMIFS(ДОХОДЫ[СУММА],ДОХОДЫ[ОПИСАНИЕ],\"<=\"&ДатаОкончания,ДОХОДЫ[ОПИСАНИЕ],\">=\"&ДатаСередины+1)","v":{"v":0,"d":"0.00р."}},{"$f":"SUMIFS(ДОХОДЫ[СУММА],ДОХОДЫ[ОПИСАНИЕ],\"<=\"&ДатаОкончания,ДОХОДЫ[ОПИСАНИЕ],\">=\"&ДатаСередины+1)","v":{"v":0,"d":"0.00р."}},{"$f":"SUMIFS(ДОХОДЫ[СУММА],ДОХОДЫ[ОПИСАНИЕ],\"<=\"&ДатаОкончания,ДОХОДЫ[ОПИСАНИЕ],\">=\"&ДатаСередины+1)","v":{"v":0,"d":"0.00р."}},{"$f":"SUMIFS(ДОХОДЫ[СУММА],ДОХОДЫ[ОПИСАНИЕ],\"<=\"&ДатаОкончания,ДОХОДЫ[ОПИСАНИЕ],\">=\"&ДатаСередины+1)","v":{"v":0,"d":"0.00р."}},{"$f":"SUMIFS(ДОХОДЫ[СУММА],ДОХОДЫ[ОПИСАНИЕ],\"<=\"&ДатаОкончания,ДОХОДЫ[ОПИСАНИЕ],\">=\"&ДатаСередины+1)","v":{"v":0,"d":"0.00р."}},{"$f":"SUMIFS(ДОХОДЫ[СУММА],ДОХОДЫ[ОПИСАНИЕ],\"<=\"&ДатаОкончания,ДОХОДЫ[ОПИСАНИЕ],\">=\"&ДатаСередины+1)","v":{"v":0,"d":"0.00р."}},{"$f":"SUMIFS(ДОХОДЫ[СУММА],ДОХОДЫ[ОПИСАНИЕ],\"<=\"&ДатаОкончания,ДОХОДЫ[ОПИСАНИЕ],\">=\"&ДатаСередины+1)","v":{"v":0,"d":"0.00р."}},{"$f":"SUMIFS(ДОХОДЫ[СУММА],ДОХОДЫ[ОПИСАНИЕ],\"<=\"&ДатаОкончания,ДОХОДЫ[ОПИСАНИЕ],\">=\"&ДатаСередины+1)","v":{"v":0,"d":"0.00р."}},{"$f":"SUMIFS(ДОХОДЫ[СУММА],ДОХОДЫ[ОПИСАНИЕ],\"<=\"&ДатаОкончания,ДОХОДЫ[ОПИСАНИЕ],\">=\"&ДатаСередины+1)","v":{"v":0,"d":"0.00р."}},{"$f":"SUMIFS(ДОХОДЫ[СУММА],ДОХОДЫ[ОПИСАНИЕ],\"<=\"&ДатаОкончания,ДОХОДЫ[ОПИСАНИЕ],\">=\"&ДатаСередины+1)","v":{"v":0,"d":"0.00р."}},{"$f":"SUMIFS(ДОХОДЫ[СУММА],ДОХОДЫ[ОПИСАНИЕ],\"<=\"&ДатаОкончания,ДОХОДЫ[ОПИСАНИЕ],\">=\"&ДатаСередины+1)","v":{"v":0,"d":"0.00р."}}]
[null,null,"Расходы за 1 пол. мес.",{"$f":"SUMIFS(Расходы[СУММА],Расходы[ДАТА],\"<=\"&ДатаСередины,Расходы[ДАТА],\">=\"&ДатаНачала)","v":{"v":0,"d":"0.00р."}},{"$f":"SUMIFS(Расходы[СУММА],Расходы[ДАТА],\"<=\"&ДатаОкончания,Расходы[ДАТА],\">=\"&ДатаНачала)","v":{"v":0,"d":"0.00р."}},{"$f":"SUMIFS(Расходы[СУММА],Расходы[ДАТА],\"<=\"&ДатаОкончания,Расходы[ДАТА],\">=\"&ДатаНачала)","v":{"v":0,"d":"0.00р."}},{"$f":"SUMIFS(Расходы[СУММА],Расходы[ДАТА],\"<=\"&ДатаОкончания,Расходы[ДАТА],\">=\"&ДатаНачала)","v":{"v":0,"d":"0.00р."}},{"$f":"SUMIFS(Расходы[СУММА],Расходы[ДАТА],\"<=\"&ДатаОкончания,Расходы[ДАТА],\">=\"&ДатаНачала)","v":{"v":0,"d":"0.00р."}},{"$f":"SUMIFS(Расходы[СУММА],Расходы[ДАТА],\"<=\"&ДатаОкончания,Расходы[ДАТА],\">=\"&ДатаНачала)","v":{"v":0,"d":"0.00р."}},{"$f":"SUMIFS(Расходы[СУММА],Расходы[ДАТА],\"<=\"&ДатаОкончания,Расходы[ДАТА],\">=\"&ДатаНачала)","v":{"v":0,"d":"0.00р."}},{"$f":"SUMIFS(Расходы[СУММА],Расходы[ДАТА],\"<=\"&ДатаОкончания,Расходы[ДАТА],\">=\"&ДатаНачала)","v":{"v":0,"d":"0.00р."}},{"$f":"SUMIFS(Расходы[СУММА],Расходы[ДАТА],\"<=\"&ДатаОкончания,Расходы[ДАТА],\">=\"&ДатаНачала)","v":{"v":1425,"d":"1,425.00р."}},{"$f":"SUMIFS(Расходы[СУММА],Расходы[ДАТА],\"<=\"&ДатаОкончания,Расходы[ДАТА],\">=\"&ДатаНачала)","v":{"v":6025,"d":"6,025.00р."}},{"$f":"SUMIFS(Расходы[СУММА],Расходы[ДАТА],\"<=\"&ДатаОкончания,Расходы[ДАТА],\">=\"&ДатаНачала)","v":{"v":2792,"d":"2,792.00р."}},{"$f":"SUMIFS(Расходы[СУММА],Расходы[ДАТА],\"<=\"&ДатаОкончания,Расходы[ДАТА],\">=\"&ДатаНачала)","v":{"v":0,"d":"0.00р."}}]
[null,null,"Расходы за 2 пол. мес.",{"$f":"SUMIFS(Расходы[СУММА],Расходы[ДАТА],\"<=\"&ДатаОкончания,Расходы[ДАТА],\">=\"&ДатаСередины+1)","v":{"v":0,"d":"0.00р."}},{"$f":"SUMIFS(Расходы[СУММА],Расходы[ДАТА],\"<=\"&ДатаОкончания,Расходы[ДАТА],\">=\"&ДатаСередины+1)","v":{"v":0,"d":"0.00р."}},{"$f":"SUMIFS(Расходы[СУММА],Расходы[ДАТА],\"<=\"&ДатаОкончания,Расходы[ДАТА],\">=\"&ДатаСередины+1)","v":{"v":0,"d":"0.00р."}},{"$f":"SUMIFS(Расходы[СУММА],Расходы[ДАТА],\"<=\"&ДатаОкончания,Расходы[ДАТА],\">=\"&ДатаСередины+1)","v":{"v":0,"d":"0.00р."}},{"$f":"SUMIFS(Расходы[СУММА],Расходы[ДАТА],\"<=\"&ДатаОкончания,Расходы[ДАТА],\">=\"&ДатаСередины+1)","v":{"v":0,"d":"0.00р."}},{"$f":"SUMIFS(Расходы[СУММА],Расходы[ДАТА],\"<=\"&ДатаОкончания,Расходы[ДАТА],\">=\"&ДатаСередины+1)","v":{"v":0,"d":"0.00р."}},{"$f":"SUMIFS(Расходы[СУММА],Расходы[ДАТА],\"<=\"&ДатаОкончания,Расходы[ДАТА],\">=\"&ДатаСередины+1)","v":{"v":0,"d":"0.00р."}},{"$f":"SUMIFS(Расходы[СУММА],Расходы[ДАТА],\"<=\"&ДатаОкончания,Расходы[ДАТА],\">=\"&ДатаСередины+1)","v":{"v":0,"d":"0.00р."}},{"$f":"SUMIFS(Расходы[СУММА],Расходы[ДАТА],\"<=\"&ДатаОкончания,Расходы[ДАТА],\">=\"&ДатаСередины+1)","v":{"v":300,"d":"300.00р."}},{"$f":"SUMIFS(Расходы[СУММА],Расходы[ДАТА],\"<=\"&ДатаОкончания,Расходы[ДАТА],\">=\"&ДатаСередины+1)","v":{"v":875,"d":"875.00р."}},{"$f":"SUMIFS(Расходы[СУММА],Расходы[ДАТА],\"<=\"&ДатаОкончания,Расходы[ДАТА],\">=\"&ДатаСередины+1)","v":{"v":0,"d":"0.00р."}},{"$f":"SUMIFS(Расходы[СУММА],Расходы[ДАТА],\"<=\"&ДатаОкончания,Расходы[ДАТА],\">=\"&ДатаСередины+1)","v":{"v":0,"d":"0.00р."}}]

{"sheet":"Расходы и доходы","index":1,"n_rows":40,"n_cols":10,"rows_kept":40}
[]
[null,null,"Полумесячный домашний бюджет",{"$nulls":6},"ДОХОДЫ И РАСХОДЫ"]
[]
[]
[]
[null,null,"ДОХОДЫ",{"$nulls":3},"РАСХОДЫ"]
[]
[null,null,"ДАТА","ОПИСАНИЕ","СУММА",null,"ДАТА","КАТЕГОРИЯ","ОПИСАНИЕ","СУММА"]
[null,null,{"$f":"NOW()-14","v":"2012-12-05T13:57:52.030"},"Зарплата Николая",{"v":1300,"d":"1,300.00р."},null,{"$f":"NOW()-7","v":"2012-12-12T13:57:52.030"},"Дом","Ипотека",{"v":1000,"d":"1,000.00р."}]
[null,null,{"$f":"NOW()-14","v":"2012-12-05T13:57:52.030"},"Зарплата Юлии",{"v":1300,"d":"1,300.00р."},null,{"$f":"NOW()-7","v":"2012-12-12T13:57:52.030"},"Дом","Электричество",{"v":100,"d":"100.00р."}]
[null,null,{"$f":"NOW()-28","v":"2012-11-21T13:57:52.030"},"Зарплата Николая",{"v":1500,"d":"1,500.00р."},null,"2012-12-12T13:57:52.030","Дом","Вода и канализация",{"v":50,"d":"50.00р."}]
[null,null,"2012-11-21T13:57:52.030","Зарплата Юлии",{"v":1600,"d":"1,600.00р."},null,"2012-12-12T13:57:52.030","Дом","Мусор",{"v":25,"d":"25.00р."}]
[null,null,{"$f":"NOW()-42","v":"2012-11-07T13:57:52.030"},"Зарплата Николая",{"v":1300,"d":"1,300.00р."},null,"2012-12-12T13:57:52.030","Дом","Мобильный телефон",{"v":100,"d":"100.00р."}]
[null,null,"2012-11-07T13:57:52.030","Зарплата Юлии",{"v":1300,"d":"1,300.00р."},null,"2012-12-12T13:57:52.030","Дом","Домашний телефон",{"v":30,"d":"30.00р."}]
[null,null,{"$f":"NOW()-56","v":"2012-10-24T13:57:52.030"},"Зарплата Николая",{"v":1500,"d":"1,500.00р."},null,"2012-12-12T13:57:52.030","Дом","Интернет",{"v":50,"d":"50.00р."}]
[null,null,"2012-10-24T13:57:52.030","Зарплата Юлии",{"v":1600,"d":"1,600.00р."},null,"2012-12-12T13:57:52.030","Дом","Телевидение",{"v":50,"d":"50.00р."}]
[null,null,{"$f":"NOW()-70","v":"2012-10-10T13:57:52.030"},"Зарплата Николая",{"v":1300,"d":"1,300.00р."},null,"2012-12-12T13:57:52.030","Дом","Ремонт и техобслуживание",{"v":25,"d":"25.00р."}]
[{"$nulls":6},{"$f":"NOW()-8","v":"2012-12-11T13:57:52.030"},"Дом","Кредитная карта 1 ",{"v":100,"d":"100.00р."}]
[{"$nulls":6},{"$f":"NOW()-9","v":"2012-12-10T13:57:52.030"},"Развлечения","Кино",{"v":37,"d":"37.00р."}]
[{"$nulls":6},{"$f":"NOW()-10","v":"2012-12-09T13:57:52.030"},"Еда","Продукты питания",{"v":350,"d":"350.00р."}]
[{"$nulls":6},{"$f":"NOW()-11","v":"2012-12-08T13:57:52.030"},"Еда","Рестораны и кафе",{"v":75,"d":"75.00р."}]
[{"$nulls":6},{"$f":"NOW()-12","v":"2012-12-07T13:57:52.030"},"Дети","Обеды",{"v":150,"d":"150.00р."}]
[{"$nulls":6},{"$f":"NOW()-13","v":"2012-12-06T13:57:52.030"},"Инвестиционные счета","Сбережения",{"v":250,"d":"250.00р."}]
[{"$nulls":6},{"$f":"NOW()-14","v":"2012-12-05T13:57:52.030"},"Инвестиционные счета","Счета инвестиций",{"v":250,"d":"250.00р."}]
[{"$nulls":6},{"$f":"NOW()-15","v":"2012-12-04T13:57:52.030"},"Личные расходы","Здоровье, фитнесс-клуб",{"v":100,"d":"100.00р."}]
[{"$nulls":6},{"$f":"NOW()-16","v":"2012-12-03T13:57:52.030"},"Питомцы","Еда",{"v":50,"d":"50.00р."}]
[{"$nulls":6},{"$f":"NOW()-20","v":"2012-11-29T13:57:52.030"},"Питомцы","Чистка одежды",{"v":50,"d":"50.00р."}]
[{"$nulls":6},{"$f":"NOW()-20","v":"2012-11-29T13:57:52.030"},"Питомцы","Другое",{"v":50,"d":"50.00р."}]
[{"$nulls":6},{"$f":"NOW()-25","v":"2012-11-24T13:57:52.030"},"Транспорт","Оплата за автомобиль 1 ",{"v":300,"d":"300.00р."}]
[{"$nulls":6},{"$f":"NOW()-25","v":"2012-11-24T13:57:52.030"},"Транспорт","Оплата за автомобиль 2 ",{"v":350,"d":"350.00р."}]
[{"$nulls":6},{"$f":"NOW()-25","v":"2012-11-24T13:57:52.030"},"Транспорт","Страховка автомобиля",{"v":50,"d":"50.00р."}]
[{"$nulls":6},{"$f":"NOW()-30","v":"2012-11-19T13:57:52.030"},"Транспорт","Бензин",{"v":50,"d":"50.00р."}]
[{"$nulls":6},{"$f":"NOW()-31","v":"2012-11-18T13:57:52.030"},"Транспорт","Бензин",{"v":25,"d":"25.00р."}]
[{"$nulls":6},{"$f":"NOW()-42","v":"2012-11-07T13:57:52.030"},"Транспорт","Ремонт и техобслуживание",{"v":150,"d":"150.00р."}]
[{"$nulls":6},{"$f":"NOW()-45","v":"2012-11-04T13:57:52.030"},"Дом","Ипотека",{"v":5000,"d":"5,000.00р."}]
[{"$nulls":6},{"$f":"NOW()-50","v":"2012-10-30T13:57:52.030"},"Дом","Расходные материалы",{"v":200,"d":"200.00р."}]
[{"$nulls":6},{"$f":"NOW()-65","v":"2012-10-15T13:57:52.030"},"Дом","Домашний телефон",{"v":100,"d":"100.00р."}]
[{"$nulls":6},{"$f":"NOW()-70","v":"2012-10-10T13:57:52.030"},"Дом","Мусор",{"v":50,"d":"50.00р."}]
[{"$nulls":6},{"$f":"NOW()-75","v":"2012-10-05T13:57:52.030"},"Дом","Ипотека",{"v":1000,"d":"1,000.00р."}]
[{"$nulls":6},{"$f":"NOW()-78","v":"2012-10-02T13:57:52.030"},"Развлечения","Кино",{"v":75,"d":"75.00р."}]

{"sheet":"Отчет о бюджете","index":2,"n_rows":41,"n_cols":8,"rows_kept":41}
[]
[null,null,"Полумесячный домашний бюджет",{"$nulls":4},"ОТЧЕТ О БЮДЖЕТЕ"]
{"$rows_empty":10}
[null,null,"РАСХОДЫ",null,null,"Итоговые значения по категориям"]
[]
[null,null,"ОПИСАНИЕ","ИТОГИ"]
[null,null,"Бензин",{"v":75,"d":"75р."}]
[null,null,"Вода и канализация",{"v":50,"d":"50р."}]
[null,null,"Домашний телефон",{"v":130,"d":"130р."}]
[null,null,"Другое",{"v":50,"d":"50р."}]
[null,null,"Еда",{"v":50,"d":"50р."}]
[null,null,"Здоровье, фитнесс-клуб",{"v":100,"d":"100р."}]
[null,null,"Интернет",{"v":50,"d":"50р."}]
[null,null,"Ипотека",{"v":7000,"d":"7,000р."}]
[null,null,"Кино",{"v":112,"d":"112р."}]
[null,null,"Кредитная карта 1 ",{"v":100,"d":"100р."}]
[null,null,"Мобильный телефон",{"v":100,"d":"100р."}]
[null,null,"Мусор",{"v":75,"d":"75р."}]
[null,null,"Обеды",{"v":150,"d":"150р."}]
[null,null,"Оплата за автомобиль 1 ",{"v":300,"d":"300р."}]
[null,null,"Оплата за автомобиль 2 ",{"v":350,"d":"350р."}]
[null,null,"Продукты питания",{"v":350,"d":"350р."}]
[null,null,"Расходные материалы",{"v":200,"d":"200р."}]
[null,null,"Ремонт и техобслуживание",{"v":175,"d":"175р."}]
[null,null,"Рестораны и кафе",{"v":75,"d":"75р."}]
[null,null,"Сбережения",{"v":250,"d":"250р."}]
[null,null,"Страховка автомобиля",{"v":50,"d":"50р."}]
[null,null,"Счета инвестиций",{"v":250,"d":"250р."}]
[null,null,"Телевидение",{"v":50,"d":"50р."}]
[null,null,"Чистка одежды",{"v":50,"d":"50р."}]
[null,null,"Электричество",{"v":100,"d":"100р."}]
[null,null,"ВСЕГО",{"v":10242,"d":"10,242р."}]

{"sheet":"Списки данных","index":3,"n_rows":20,"n_cols":14,"rows_kept":20}
[]
[null,null,"Полумесячный домашний бюджет",{"$nulls":10},"СПИСКИ ДАННЫХ"]
[]
[]
[null,null,"НАСТРОЙКА         Приведенные ниже данные категорий используются в выпадающих списках в таблице \"Расходы\" на листе \"Расходы и доходы\". Чтобы изменить списки, можно изменить названия категорий или описания под каждой категорией."]
[]
[null,null,"Дом","Развлечения","Еда","Подарки и взносы","Дети","Инвестиционные счета","Медобслуживание","Другое","Личные расходы","Питомцы","Налоги и юр. Расходы","Транспорт"]
[null,null,"Ипотека","Кино","Продукты питания","Благотворительность 1","Одежда","Пенсионные отчисления","Врачи и больницы","Другое","Одежда","Еда","Областные сборы","Оплата за автомобиль 1 "]
[null,null,"Электричество","Видео и кино","Рестораны и кафе","Благотворительность 2","Игрушки и игры","Сбережения","Страховка","Организационные взносы","Стрижка, маникюр и педикюр","Расходные материалы","Государственные сборы","Оплата за автомобиль 2 "]
[null,null,"Вода и канализация","Музыка",null,"Благотворительность 3","Обеды","Чеки",null,null,"Химчистка","Медобслуживание","Местные сборы","Страховка автомобиля"]
[null,null,"Мусор","Концерты и театр",null,"Подарки","Выплаты и сборы","Пенсия",null,null,"Здоровье, фитнесс-клуб","Чистка одежды","Другое","Лицензия и регистрация"]
[null,null,"Мобильный телефон","Спортивные мероприятия",null,null,"Школьные принадлежности","Счета инвестиций",null,null,"Покупки","Другое","Адвокат","Бензин"]
[null,null,"Домашний телефон","Другое",null,null,"Другое","Институт",null,null,"Другое",null,"Выплаты на ребенка","Ремонт и техобслуживание"]
[null,null,"Интернет",{"$nulls":3},"Прачечная","Кредиты",{"$nulls":4},"Алименты","Общественный транспорт"]
[null,null,"Телевидение",{"$nulls":4},"Кредит на учебу в университете",{"$nulls":4},"Другое"]
[null,null,"Ремонт и техобслуживание"]
[null,null,"Расходные материалы"]
[null,null,"Кабельное телевидение, Интернет и телефон"]
[null,null,"Кредитная карта 1 "]
[null,null,"Кредитная карта 2 "]

{"sheet":"Сводная таблица категорий","index":4,"n_rows":16,"n_cols":14,"rows_kept":16,"hidden":true}
[]
[null,null,"Полумесячный домашний бюджет",{"$nulls":10},"СВОДНЫЕ КАТЕГОРИИ"]
[]
[]
[null,"Данная сводная таблица является источником данных для сводной диаграммы \"Итоговые значения по категориям\" в отчете о бюджете. "]
[]
[null,null,"Popisky řádků","Сумма по полю СУММА2"]
[null,null,"Дети",{"v":150,"d":"150р."}]
[null,null,"Дом",{"v":7880,"d":"7,880р."}]
[null,null,"Еда",{"v":425,"d":"425р."}]
[null,null,"Инвестиционные счета",{"v":500,"d":"500р."}]
[null,null,"Личные расходы",{"v":100,"d":"100р."}]
[null,null,"Питомцы",{"v":150,"d":"150р."}]
[null,null,"Развлечения",{"v":112,"d":"112р."}]
[null,null,"Транспорт",{"v":925,"d":"925р."}]
[null,null,"Celkový součet",{"v":10242,"d":"10,242р."}]